bitfinex/quotes_SOLUSD_20220211
["timestamp","ask_amount","ask_price","bid_price","bid_amount"]
[1644575156752,59.4435,106.05,105.99,4.716]
[1644575157558,59.4435,106.05,105.99,52.72673665]
[1644575157755,38.3743,106.05,105.99,52.72673665]
[1644575158054,14.1564,106.05,105.99,52.72673665]
[1644575158760,14.1564,106.05,105.99,66.88233665]
[1644575160157,14.1564,106.05,105.99,18.8716]
[1644575160557,14.1564,106.05,105.99,4.716]
[1644575160958,14.1564,106.05,105.98,40.29774025]
[1644575161164,14.1564,106.05,105.98,85.54819792]
[1644575161360,14.1564,106.05,105.98,84.21605767]
[1644575162264,14.1564,106.05,105.99,4.716]
[1644575162864,38.0007,106.05,105.99,4.716]
[1644575166169,38.0007,106.05,105.98,43.6822]
[1644575166367,38.0007,106.05,105.98,45.01434025]
[1644575167069,38.0007,106.05,105.98,43.6822]
[1644575167471,38.0007,106.05,105.98,38.9662]
[1644575170871,38.0007,106.05,105.98,24.809]
[1644575172373,38.0007,106.05,105.98,24.833]
[1644575172875,38.0007,106.05,105.98,38.9902]
[1644575173374,38.0007,106.05,105.98,40.32234025]
[1644575173974,38.0007,106.05,105.98,38.9902]
[1644575174175,38.0007,106.05,105.98,40.32234025]
[1644575174675,38.0007,106.05,105.98,40.57234025]
[1644575176877,38.0007,106.05,105.98,40.32234025]
[1644575177276,38.0007,106.05,105.98,24.833]
[1644575177478,38.0007,106.05,105.98,26.16514025]
[1644575178275,38.0007,106.05,105.98,24.833]
[1644575178679,38.0007,106.05,105.98,26.16514025]
[1644575178879,38.0007,106.05,105.98,24.833]
[1644575180381,47.4967,106.05,105.99,0.024]
[1644575186186,49.88036791,106.05,105.97,1.33214025]
[1644575186388,1.3330385,106.03,105.96,4.716]
[1644575186586,14.1649,106.01,105.96,4.716]
[1644575186788,25.2849,106.01,105.94,24.21024025]
[1644575186987,49.1536,106.01,105.94,1.33214025]
[1644575187188,2.38366791,106.0,105.92,6.04814025]
[1644575187688,14.1676,105.99,105.92,6.04814025]
[1644575187886,36.9029,105.99,105.92,6.04814025]
[1644575188289,36.9029,105.99,105.92,4.716]
[1644575188489,36.9029,105.99,105.92,6.04814025]
[1644575189087,36.9029,105.99,105.92,4.716]
[1644575197089,41.82511252,105.99,105.92,4.716]
[1644575200195,36.9029,105.99,105.93,40.778741]
[1644575200390,14.1676,105.99,105.94,4.718]
[1644575200593,14.1618,106.0,105.94,4.718]
[1644575200790,22.9379,106.02,105.94,18.568]
[1644575200990,71.52890045,106.03,105.94,18.568]
[1644575201493,70.1017,106.04,105.95,14.1848]
[1644575201693,14.1604,106.01,105.97,35.79655774]
[1644575201891,14.1604,106.01,105.98,0.024]
[1644575202089,14.1604,106.01,105.97,35.79655774]
[1644575202492,14.1604,106.01,105.96,4.74]
[1644575203590,14.1604,106.01,105.96,46.33123575]
[1644575204093,14.1604,106.01,105.96,60.49153575]
[1644575204293,14.1604,106.01,105.96,60.74153575]
[1644575204692,110.02393544,106.06,105.96,60.74153575]
[1644575204894,62.83343544,106.06,105.97,13.624]
[1644575205093,62.83343544,106.06,105.98,0.024]
[1644575205294,15.1571385,106.09,105.98,13.624]
[1644575205495,1.3330385,106.09,106.0,47.38189542]
[1644575205699,24.89610896,106.1,106.0,72.43889542]
[1644575205894,70.74077046,106.1,106.0,72.68889542]
[1644575206093,70.74077046,106.1,106.01,4.714]
[1644575206294,70.74077046,106.1,106.01,28.4798]
[1644575206493,70.74077046,106.1,106.01,28.7298]
[1644575206695,70.74077046,106.1,106.01,42.8819]
[1644575206895,70.74077046,106.1,106.01,42.6319]
[1644575206896,14.1518,106.08,106.01,42.6319]
[1644575207094,14.1518,106.08,106.01,4.714]
[1644575207295,16.53546791,106.08,105.98,18.338]
[1644575207495,16.53546791,106.08,105.98,43.0559]
[1644575208097,40.55466791,106.08,105.98,43.0559]
[1644575208294,40.55466791,106.08,105.99,48.26149495]
[1644575208494,40.55466791,106.08,105.98,29.4559]
[1644575208698,62.3659631,106.08,105.98,4.738]
[1644575208999,13.6,106.07,105.98,4.738]
[1644575209196,14.1626,106.05,105.98,4.714]
[1644575209399,14.1626,106.05,105.98,4.738]
[1644575209400,37.6726,106.05,105.98,4.738]
[1644575209596,2.38366791,106.04,105.98,4.738]
[1644575210897,14.162,106.03,105.98,4.738]
[1644575214097,14.162,106.03,105.98,0.024]
[1644575214298,14.162,106.03,105.97,46.47327717]
[1644575214504,14.162,106.03,105.98,0.024]
[1644575214699,14.162,106.03,105.97,46.47327717]
[1644575215098,14.162,106.03,105.97,0.024]
[1644575215298,14.162,106.03,105.95,4.74]
[1644575215496,14.162,106.03,105.96,0.024]
[1644575216098,14.162,106.03,105.96,42.92040582]
[1644575216301,52.8931385,106.08,105.97,0.024]
[1644575216499,24.0192,106.08,105.98,18.315]
[1644575216698,24.89610896,106.1,105.98,41.706]
[1644575216900,24.89610896,106.1,105.98,41.956]
[1644575217801,14.1543,106.06,105.99,14.1552]
[1644575218002,14.1543,106.06,106.0,54.55606086]
[1644575223212,14.1543,106.06,106.0,59.27106086]
[1644575224112,14.1543,106.06,106.0,59.52106086]
[1644575224714,14.1543,106.06,106.0,73.67526086]
[1644575224912,70.74007046,106.1,106.0,73.67526086]
[1644575225114,23.56307046,106.1,106.0,73.67526086]
[1644575225722,0.03247046,106.1,106.0,97.73026086]
[1644575225913,14.149,106.1,106.0,97.73026086]
[1644575226115,0.03247046,106.09,106.0,97.73026086]
[1644575226513,0.03247046,106.11,106.0,97.73026086]
[1644575226931,2.38366791,106.1,106.0,97.73026086]
[1644575227130,0.03247046,106.09,106.0,97.48026086]
[1644575227730,14.18267046,106.09,106.0,97.48026086]
[1644575228633,14.18267046,106.09,106.0,97.73026086]
[1644575236941,14.18267046,106.09,106.0,97.48026086]
[1644575237343,16.56633837,106.09,106.0,92.76526086]
[1644575237844,16.56633837,106.09,106.0,78.61106086]
[1644575238044,17.89937687,106.09,106.0,40.95606086]
[1644575240446,15.51570896,106.09,106.0,40.95606086]
[1644575240850,14.18267046,106.09,106.01,13.6]
[1644575241046,14.18267046,106.09,106.01,37.2346]
[1644575241847,14.18267046,106.09,106.01,37.4846]
[1644575242046,14.18267046,106.09,106.01,37.2346]
[1644575242851,14.18267046,106.09,106.01,51.3879]
[1644575243849,16.56633837,106.09,106.01,51.3879]
[1644575244450,16.56633837,106.09,106.01,37.7879]
[1644575245248,16.56633837,106.09,106.01,23.6346]
[1644575245452,17.89937687,106.09,106.01,23.6346]
[1644575245649,15.51570896,106.09,106.01,23.6346]
[1644575246549,14.1564,106.06,106.01,23.6346]
[1644575246950,14.1564,106.06,106.0,0.024]
[1644575247249,2.38366791,106.05,106.0,0.024]
[1644575247451,37.71120641,106.07,105.98,0.024]
[1644575247652,37.71120641,106.07,105.99,4.715]
[1644575247849,37.71120641,106.07,106.0,0.024]
[1644575248052,14.1583,106.04,105.98,0.024]
[1644575249548,14.1583,106.04,105.98,4.74]
[1644575251253,25.24896791,106.04,105.98,4.74]
[1644575251653,25.24896791,106.04,105.98,0.024]
[1644575253356,39.69426791,106.04,105.98,0.024]
[1644575254958,37.3106,106.04,105.98,0.024]
[1644575255657,39.69426791,106.04,105.98,0.024]
[1644575256658,37.3106,106.04,105.98,0.024]
[1644575257655,60.169,106.04,105.98,0.024]
[1644575261991,45.7237,106.04,105.98,0.024]
[1644575262992,45.7237,106.04,105.99,4.716]
[1644575263192,45.7237,106.04,105.99,4.74]
[1644575263593,22.8653,106.04,106.0,43.26355033]
[1644575263794,14.1583,106.04,106.0,43.26355033]
[1644575265195,15.5051,106.05,106.0,43.26355033]
[1644575265396,15.5051,106.05,106.01,4.715]
[1644575266298,1.35,106.05,106.01,4.715]
[1644575267299,1.35,106.05,106.01,18.8689]
[1644575267499,15.5045,106.05,106.0,43.26355033]
[1644575267999,15.5045,106.05,105.99,28.3447]
[1644575268198,15.5045,106.05,105.99,23.6297]
[1644575268699,15.5045,106.05,105.99,37.7859]
[1644575268898,15.5045,106.05,105.99,83.02288674]
[1644575269599,15.5045,106.05,105.99,37.7859]
[1644575269801,15.5045,106.05,105.99,0.024]
[1644575272104,38.1957,106.05,105.99,0.024]
[1644575274308,41.91240641,106.05,105.99,0.024]
[1644575275107,39.5287385,106.05,105.99,0.024]
[1644575278811,53.1287385,106.05,105.99,0.024]
[1644575279011,53.1287385,106.05,105.96,0.024]
[1644575279311,53.1287385,106.05,105.97,4.716]
[1644575279512,53.1287385,106.05,105.98,0.024]
[1644575280812,53.1287385,106.05,105.98,4.74]
[1644575281011,53.1287385,106.05,105.99,0.024]
[1644575285217,38.1957,106.05,105.99,0.024]
[1644575285418,39.5287385,106.05,105.99,0.024]
[1644575285918,38.1957,106.05,105.99,0.024]
[1644575286319,39.5287385,106.05,105.99,0.024]
[1644575286516,38.1957,106.05,105.99,0.024]
[1644575286940,39.5287385,106.05,105.99,0.024]
[1644575287340,38.1957,106.05,105.99,0.024]
[1644575287941,15.5045,106.05,105.99,0.024]
[1644575288141,15.5045,106.05,106.0,4.716]
[1644575288440,15.5045,106.05,106.01,48.4193934]
[1644575288441,1.35,106.05,106.01,48.4193934]
[1644575288642,1.35,106.05,106.02,4.715]
[1644575288841,1.35,106.05,106.03,6.06439994]
[1644575293445,15.5047,106.05,106.03,6.06439994]
[1644575293643,15.5047,106.05,106.0,23.2399]
[1644575296252,15.5047,106.05,105.99,0.024]
[1644575301357,15.53717046,106.05,105.99,0.024]
[1644575303161,15.5047,106.05,106.01,37.19330624]
[1644575304365,15.5047,106.05,106.0,18.8702]
[1644575304566,15.5047,106.05,106.0,14.1542]
[1644575305066,15.5047,106.05,105.99,22.5605]
[1644575305267,15.5047,106.05,105.99,77.71282739]
[1644575309573,15.53717046,106.05,105.99,77.71282739]
[1644575314006,15.53717046,106.05,105.99,36.7164]
[1644575321910,15.53717046,106.05,105.99,22.5605]
[1644575324018,16.87020896,106.05,105.99,22.5605]
[1644575324214,15.53717046,106.05,105.99,22.5605]
[1644575325218,16.87020896,106.05,105.99,22.5605]
[1644575325419,15.53717046,106.05,105.99,22.5605]
[1644575325818,16.87020896,106.05,105.99,22.5605]
[1644575327721,40.33700896,106.05,105.99,0.024]
[1644575327923,51.35667687,106.05,105.99,0.024]
[1644575328120,14.1639,106.03,105.99,0.024]
[1644575328321,15.4969385,106.03,105.98,4.716]
[1644575328520,1.3330385,106.02,105.95,0.024]
[1644575328722,2.38366791,106.02,105.94,4.716]
[1644575328921,2.38366791,106.01,105.95,0.024]
[1644575329320,41.95840641,106.03,105.95,0.024]
[1644575329723,14.1647,106.01,105.95,0.024]
[1644575329921,38.3805,106.01,105.95,0.024]
[1644575333124,38.3805,106.01,105.95,4.74]
[1644575334126,40.76416791,106.01,105.95,4.74]
[1644575335227,40.76416791,106.01,105.95,0.024]
[1644575339733,54.36416791,106.01,105.95,0.024]
[1644575340331,54.36416791,106.01,105.94,0.024]
[1644575340531,64.38716791,106.01,105.92,4.74]
[1644575340732,64.38716791,106.01,105.93,0.024]
[1644575341534,62.0035,106.01,105.93,0.024]
[1644575341734,76.97721186,106.01,105.93,0.024]
[1644575341936,49.58366791,106.0,105.93,0.024]
[1644575342137,14.1706,105.98,105.93,0.024]
[1644575342538,2.38366791,105.97,105.93,0.024]
[1644575342739,2.38366791,105.97,105.92,4.74]
[1644575343136,14.1706,105.96,105.92,4.74]
[1644575343336,14.1706,105.96,105.92,4.716]
[1644575345438,14.1656,105.97,105.92,4.716]
[1644575345639,14.1656,105.97,105.93,0.024]
[1644575345839,14.1656,105.97,105.94,4.719]
[1644575346037,14.1656,105.97,105.95,6.06439994]
[1644575346840,14.1656,105.97,105.94,4.719]
[1644575348344,14.1656,105.97,105.92,4.742]
[1644575348544,14.1656,105.97,105.92,4.718]
[1644575348744,14.1656,105.97,105.92,4.742]
[1644575350247,14.1656,105.97,105.92,18.9069]
[1644575350446,14.1645,105.98,105.92,18.9069]
[1644575350648,14.1645,105.98,105.93,4.742]
[1644575350855,14.1645,105.98,105.93,4.718]
[1644575351056,14.1645,105.98,105.93,4.742]
[1644575352157,14.1645,105.98,105.93,4.718]
[1644575353055,14.1645,105.98,105.94,48.6209801]
[1644575354261,14.1645,105.98,105.92,4.742]
[1644575355279,14.1645,105.98,105.93,34.29162266]
[1644575355483,14.1645,105.98,105.93,34.31562266]
[1644575363191,14.163,105.99,105.93,53.44692266]
[1644575363599,23.8343,106.01,105.93,53.44692266]
[1644575363791,1.3330385,106.03,105.94,23.2676]
[1644575364089,49.6885385,106.04,105.95,18.34]
[1644575364290,49.6885385,106.04,105.97,48.50451792]
[1644575364492,49.6885385,106.04,105.97,53.24451792]
[1644575364692,14.1574,106.03,105.98,14.1574]
[1644575365193,14.1574,106.03,105.97,53.24451792]
[1644575366894,14.1574,106.03,105.97,67.40181792]
[1644575367903,14.1574,106.03,105.97,67.65181792]
[1644575368498,14.1564,106.04,105.97,67.65181792]
[1644575370700,14.1564,106.04,105.97,67.40181792]
[1644575371001,14.1564,106.04,105.97,67.65181792]
[1644575372098,14.1564,106.04,105.97,66.30181792]
[1644575373327,14.1564,106.04,105.97,79.90181792]
[1644575373529,14.18757046,106.05,105.97,79.90181792]
[1644575373728,14.1551,106.05,105.98,24.5801]
[1644575373930,14.1551,106.05,105.99,18.8705]
[1644575373931,0.03247046,106.04,105.99,18.8705]
[1644575374129,14.1551,106.05,106.0,47.25068697]
[1644575376836,16.53876791,106.05,106.0,47.25068697]
[1644575377036,16.53876791,106.05,105.98,29.3191]
[1644575377236,16.53876791,106.05,105.98,29.2951]
[1644575378037,16.57123837,106.05,105.99,46.48176462]
[1644575378439,39.71323837,106.05,105.99,46.48176462]
[1644575382440,37.32957046,106.05,105.99,46.48176462]
[1644575384844,37.32957046,106.05,105.99,60.63696462]
[1644575387444,37.32957046,106.05,105.99,46.48176462]
[1644575388446,37.32957046,106.05,105.98,24.6041]
[1644575388850,37.32957046,106.05,105.98,24.5801]
[1644575389247,37.32957046,106.05,105.98,24.6041]
[1644575389445,37.32957046,106.05,105.99,41.70115073]
[1644575389649,37.32957046,106.05,105.99,46.41715073]
[1644575391753,38.66260896,106.05,105.99,46.41715073]
[1644575394956,38.66260896,106.05,105.99,41.70115073]
[1644575395773,41.04627687,106.05,105.99,41.70115073]
[1644575395960,41.04627687,106.05,105.98,24.6041]
[1644575396258,38.66260896,106.05,105.98,24.6041]
[1644575396958,41.04627687,106.05,105.98,24.6041]
[1644575397566,38.66260896,106.05,105.98,24.6041]
[1644575397961,41.04627687,106.05,105.98,24.6041]
[1644575398162,38.66260896,106.05,105.98,24.6041]
[1644575400664,41.04627687,106.05,105.98,24.6041]
[1644575400863,38.66260896,106.05,105.98,24.6041]
[1644575401264,41.04627687,106.05,105.98,24.6041]
[1644575401465,38.66260896,106.05,105.99,41.18541513]
[1644575402968,38.66260896,106.05,105.98,24.6041]
[1644575403668,41.04627687,106.05,105.98,24.6041]
[1644575404066,1.3330385,106.04,105.98,24.6041]
[1644575404266,14.1592,106.03,105.98,24.6041]
[1644575405268,14.1592,106.03,105.98,58.89962564]
[1644575407391,14.1592,106.03,105.98,58.87562564]
[1644575407691,14.1592,106.03,105.98,58.89962564]
[1644575409995,14.1592,106.03,105.98,24.6041]
[1644575412098,14.1592,106.03,105.99,40.20888329]
[1644575412798,14.1592,106.03,105.98,24.6041]
[1644575414101,13.15659172,106.03,105.98,24.6041]
[1644575415104,15.54025963,106.03,105.98,0.024]
[1644575415303,15.54025963,106.03,105.97,4.716]
[1644575415304,1.3330385,106.02,105.97,4.716]
[1644575415505,15.4975385,106.01,105.98,0.024]
[1644575415706,17.88120641,106.01,105.97,4.716]
[1644575416210,16.54816791,106.01,105.95,0.024]
[1644575416408,40.11026791,106.01,105.95,0.024]
[1644575416607,14.1662,105.99,105.95,0.024]
[1644575416806,37.7283,105.99,105.94,0.024]
[1644575417006,2.38366791,105.98,105.94,0.024]
[1644575417306,2.38366791,105.98,105.93,0.024]
[1644575417505,23.5621,105.99,105.93,0.024]
[1644575418107,14.1672,105.97,105.93,0.024]
[1644575418307,14.1672,105.97,105.92,23.4313]
[1644575418508,16.55086791,105.97,105.92,23.4313]
[1644575418909,16.55086791,105.97,105.91,0.024]
[1644575419108,38.0635,105.97,105.91,0.024]
[1644575419708,40.44716791,105.97,105.91,0.024]
[1644575420008,38.0635,105.97,105.91,0.024]
[1644575421212,40.44716791,105.97,105.91,0.024]
[1644575421812,54.04716791,105.97,105.91,0.024]
[1644575422010,61.74616791,105.97,105.91,0.024]
[1644575422410,108.94616791,105.97,105.91,0.024]
[1644575425013,108.94616791,105.97,105.89,0.024]
[1644575429419,123.91987977,105.97,105.89,0.024]
[1644575429716,132.15935632,105.97,105.89,0.024]
[1644575429917,132.15935632,105.97,105.88,0.024]
[1644575431520,129.77568841,105.97,105.88,0.024]
[1644575432925,146.10515712,105.97,105.88,0.024]
[1644575433842,146.10515712,105.97,105.88,4.744]
[1644575434043,317.47819562,105.97,105.86,0.024]
[1644575434245,26.87926791,105.96,105.86,0.024]
[1644575434442,14.1772,105.93,105.86,0.024]
[1644575434743,52.2175,105.93,105.87,4.721]
[1644575436747,66.5772,105.93,105.87,4.721]
[1644575438846,68.96086791,105.93,105.87,4.721]
[1644575439947,68.96086791,105.93,105.87,0.024]
[1644575440147,66.5772,105.93,105.87,0.024]
[1644575444453,52.2175,105.93,105.87,0.024]
[1644575448357,54.60116791,105.93,105.87,0.024]
[1644575448757,52.2175,105.93,105.87,0.024]
[1644575453462,54.60116791,105.93,105.86,0.024]
[1644575453663,61.62816791,105.93,105.86,0.024]
[1644575455264,59.2445,105.93,105.86,0.024]
[1644575455664,61.62816791,105.93,105.86,0.024]
[1644575456064,59.2445,105.93,105.86,0.024]
[1644575456366,14.1808,105.91,105.86,0.024]
[1644575456665,51.6875,105.91,105.84,0.024]
[1644575456866,2.38366791,105.9,105.82,0.024]
[1644575457164,13.6,105.89,105.83,0.024]
[1644575457366,36.5894,105.89,105.83,0.024]
[1644575457565,16.56686791,105.88,105.83,0.024]
[1644575457765,30.16686791,105.88,105.83,0.024]
[1644575458265,30.16686791,105.88,105.81,0.024]
[1644575459469,27.7832,105.88,105.81,0.024]
[1644575460467,2.38366791,105.87,105.81,0.024]
[1644575460668,14.1839,105.86,105.81,0.024]
[1644575460868,14.1839,105.86,105.8,28.2425]
[1644575461871,14.1839,105.86,105.8,29.57464025]
[1644575464974,2.38366791,105.85,105.8,29.57464025]
[1644575465172,14.1839,105.84,105.8,23.5195]
[1644575465373,14.1839,105.84,105.8,0.024]
[1644575465974,14.1839,105.84,105.78,0.024]
[1644575465975,23.1239,105.84,105.78,0.024]
[1644575466175,13.6,105.83,105.78,0.024]
[1644575466374,14.1889,105.82,105.76,1.35614025]
[1644575466573,14.1889,105.82,105.77,4.726]
[1644575467774,14.1889,105.82,105.76,0.024]
[1644575468975,14.1889,105.82,105.76,38.30491478]
[1644575469577,16.57256791,105.82,105.76,0.024]
[1644575470178,14.1889,105.82,105.76,0.024]
[1644575470375,16.57256791,105.82,105.76,0.024]
[1644575470777,14.1889,105.82,105.76,0.024]
[1644575471578,77.37256791,105.82,105.76,0.024]
[1644575471777,30.17256791,105.82,105.76,0.024]
[1644575471978,27.7889,105.82,105.76,0.024]
[1644575475979,27.7889,105.82,105.76,34.70038251]
[1644575476182,14.1889,105.82,105.76,34.70038251]
[1644575476380,14.1889,105.82,105.77,4.726]
[1644575477783,14.1889,105.82,105.76,0.024]
[1644575478383,14.1889,105.82,105.76,43.94029035]
[1644575479186,14.1889,105.82,105.76,0.024]
[1644575479385,23.93256791,105.82,105.76,0.024]
[1644575479585,29.798019,105.81,105.76,0.024]
[1644575479885,27.7934,105.8,105.75,0.024]
[1644575480088,73.798019,105.79,105.71,63.96626539]
[1644575480284,13.6,105.78,105.71,63.96626539]
[1644575480685,16.58136791,105.77,105.71,63.96626539]
[1644575480887,13.6,105.76,105.66,4.728]
[1644575481085,2.38366791,105.77,105.67,24.8617]
[1644575481286,60.9254,105.78,105.68,4.729]
[1644575481490,47.3254,105.78,105.69,24.8617]
[1644575481687,47.3254,105.78,105.71,38.45821193]
[1644575481885,15.98366791,105.79,105.73,41.7044831]
[1644575481886,13.6,105.79,105.73,41.7044831]
[1644575482285,13.6,105.79,105.74,4.727]
[1644575482787,2.38366791,105.79,105.74,4.727]
[1644575483186,2.38366791,105.79,105.74,15.286]
[1644575483789,14.192,105.78,105.74,15.286]
[1644575484391,14.192,105.78,105.75,38.27224092]
[1644575484590,110.2724,105.82,105.76,6.06439994]
[1644575484789,96.6724,105.82,105.76,6.06439994]
[1644575485293,14.1903,105.8,105.76,6.06439994]
[1644575486091,49.3714,105.82,105.76,6.06439994]
[1644575486292,14.1879,105.81,105.76,10.79039994]
[1644575486494,16.57156791,105.81,105.76,6.06439994]
[1644575486691,30.17156791,105.81,105.71,4.726]
[1644575486891,2.38366791,105.8,105.72,23.346]
[1644575487092,15.98366791,105.8,105.72,23.346]
[1644575487292,15.98366791,105.8,105.72,71.12641488]
[1644575487293,14.1941,105.78,105.72,71.12641488]
[1644575487491,47.3136,105.79,105.72,71.12641488]
[1644575487492,2.38366791,105.8,105.72,71.12641488]
[1644575487694,13.6,105.82,105.74,46.18436109]
[1644575487891,25.18346791,105.83,105.76,42.13683129]
[1644575488094,11.472025,105.82,105.76,50.79583129]
[1644575488691,14.1902,105.8,105.76,50.79583129]
[1644575488891,14.1902,105.8,105.76,8.659]
[1644575489092,14.1902,105.8,105.73,4.726]
[1644575489293,14.1902,105.8,105.73,4.976]
[1644575489811,14.1902,105.8,105.73,41.66743448]
[1644575490010,14.1902,105.8,105.73,41.41743448]
[1644575491317,37.8858,105.8,105.73,41.41743448]
[1644575493128,37.8858,105.8,105.72,23.346]
[1644575493319,4.095,105.79,105.69,1.33214025]
[1644575493518,14.1952,105.76,105.69,1.33214025]
[1644575493720,4.729,105.75,105.65,1.33214025]
[1644575493917,13.6,105.74,105.65,1.33214025]
[1644575494118,4.73,105.73,105.64,1.33214025]
[1644575494317,4.73,105.73,105.63,6.06314025]
[1644575494318,25.925,105.73,105.63,6.06314025]
[1644575494517,16.58486791,105.72,105.62,29.02264025]
[1644575494918,14.2012,105.72,105.62,29.02264025]
[1644575495318,14.2012,105.72,105.63,44.12587848]
[1644575495518,14.1993,105.73,105.64,4.731]
[1644575495722,14.1993,105.73,105.65,43.47020623]
[1644575495918,14.1993,105.73,105.65,43.49420623]
[1644575496320,14.1993,105.73,105.65,43.74420623]
[1644575496519,14.1993,105.73,105.65,1.35614025]
[1644575496719,30.18296791,105.73,105.65,0.024]
[1644575496920,30.18296791,105.73,105.64,0.024]
[1644575496921,14.207,105.7,105.64,0.024]
[1644575497128,4.731,105.69,105.63,0.024]
[1644575497328,15.98366791,105.7,105.61,0.024]
[1644575497630,13.6,105.7,105.62,4.732]
[1644575497827,4.732,105.69,105.62,50.58814961]
[1644575498030,4.732,105.69,105.63,0.024]
[1644575498233,4.732,105.7,105.63,0.024]
[1644575498429,14.2099,105.68,105.61,4.756]
[1644575498630,4.732,105.67,105.62,0.024]
[1644575498830,4.732,105.67,105.61,4.732]
[1644575499031,4.733,105.69,105.61,4.732]
[1644575499231,4.733,105.69,105.62,40.62317541]
[1644575499431,18.9386,105.69,105.62,40.62317541]
[1644575500034,14.2056,105.69,105.62,40.87317541]
[1644575500233,14.2056,105.69,105.62,40.62317541]
[1644575500834,14.2056,105.69,105.62,0.024]
[1644575501433,4.732,105.68,105.62,0.024]
[1644575501634,14.2071,105.68,105.61,0.024]
[1644575501833,14.2071,105.68,105.62,4.732]
[1644575502034,14.2071,105.68,105.63,38.70117771]
[1644575502234,14.2071,105.68,105.61,4.756]
[1644575502438,14.2071,105.68,105.62,0.024]
[1644575502935,14.2071,105.68,105.61,0.024]
[1644575503338,18.9366,105.69,105.61,47.79856828]
[1644575503536,14.2046,105.69,105.62,0.024]
[1644575503737,4.732,105.71,105.62,0.024]
[1644575503935,60.9486,105.72,105.62,0.024]
[1644575503936,4.731,105.72,105.63,36.7846457]
[1644575504135,4.731,105.73,105.65,39.71278741]
[1644575504336,53.9906,105.75,105.66,0.024]
[1644575504540,53.9906,105.75,105.68,46.12862126]
[1644575504737,53.9906,105.75,105.69,0.024]
[1644575504938,47.3384,105.74,105.69,0.024]
[1644575505138,58.798324,105.74,105.66,4.753]
[1644575505336,47.3384,105.74,105.67,0.024]
[1644575505738,47.3384,105.74,105.67,48.23730846]
[1644575505940,14.1994,105.74,105.68,0.024]
[1644575507342,4.729,105.73,105.68,0.024]
[1644575507550,52.0612,105.76,105.67,48.21330846]
[1644575507743,4.73,105.76,105.69,41.75653017]
[1644575507943,4.729,105.79,105.71,45.5614153]
[1644575508141,4.729,105.79,105.72,0.024]
[1644575508343,7.11266791,105.79,105.72,0.024]
[1644575508547,14.1951,105.77,105.72,0.024]
[1644575508741,4.728,105.76,105.72,0.024]
[1644575508942,4.728,105.76,105.7,13.6]
[1644575509143,4.729,105.78,105.71,36.95230242]
[1644575509342,4.729,105.78,105.72,0.024]
[1644575509741,14.1955,105.76,105.72,0.024]
[1644575510744,18.9227,105.78,105.72,0.024]
[1644575511046,4.729,105.78,105.73,48.69035798]
[1644575511245,4.727,105.8,105.73,53.44135798]
[1644575511445,4.727,105.8,105.74,0.024]
[1644575511845,2.38366791,105.83,105.76,44.52448844]
[1644575512057,2.38366791,105.83,105.77,0.024]
[1644575512058,14.1872,105.82,105.77,0.024]
[1644575512445,2.38366791,105.83,105.77,0.024]
[1644575512649,4.725,105.82,105.77,0.024]
[1644575512847,4.725,105.83,105.77,0.024]
[1644575513248,4.725,105.83,105.78,38.03710816]
[1644575514549,14.1847,105.84,105.78,38.03710816]
[1644575515249,4.725,105.85,105.78,38.03710816]
[1644575515651,4.725,105.85,105.77,0.024]
[1644575515852,2.38366791,105.84,105.77,0.024]
[1644575516049,4.725,105.83,105.77,0.024]
[1644575517149,2.38366791,105.86,105.77,0.024]